Cogmind - Beta 13 @@@ ROGUE MODE // 2024.04.24 @ 17:43:56 Player: Lunace Result: Destroyed by Y-54 Guardian with Flak Gun Performance ------------- Evolutions (4) 2000 Regions Visited (11) 2200 Robots Destroyed (140) 700 Value Destroyed (4479) 4479 Prototype IDs (39) 780 Alien Tech Used (0) 0 Bonus (1594) 1594 TOTAL SCORE: 11753 Bonus ------- Pacifist 200 High Alert Combat Kills 1094 Aligned with FarCom 300 Cogmind --------- Core Integrity 0/850 Matter 429/550 Energy 360/360 System Corruption 7% Temperature Cool (59) Movement Rolling (115) Ox1 Location -6/Factory Parts ------- > --- POWER (2) -------- Light Angular Momentum Engine Fission Core > --- PROPULSION (4) --- Advanced Myomer Leg Armored Huge Wheel > --- UTILITY (7) ------ Medium Storage Unit Matter Compressor (fused) Enhanced Optical Array Improved Signal Interpreter Launcher Loader > --- WEAPON (2) ------- Long-range Missile Launcher > --- INVENTORY (10) --- High-density Centrium Wheel Advanced Energy Well (500) Advanced Energy Well (500) Long-range Missile Launcher Long-range Missile Launcher Precision Rocket Launcher Precision Rocket Launcher Peak State ------------ > --- POWER ------------ Fission Core Fission Core > --- PROPULSION ------- Advanced Myomer Leg Advanced Myomer Leg Advanced Myomer Leg Advanced Myomer Leg > --- UTILITY ---------- Experimental Cooling System Medium Storage Unit Advanced Energy Well Matter Compressor Enhanced Optical Array Improved Signal Interpreter Long-range Tractor Beam > --- WEAPON ----------- Precision Rocket Launcher Chainsword > --- INVENTORY -------- High-density Centrium Wheel High-density Centrium Wheel Advanced Energy Well Advanced Energy Well Advanced Energy Well Corruption Screen Precision Rocket Launcher Precision Rocket Launcher Precision Rocket Launcher Chainsword [Rating: 91] Favorites ----------- Power Heavy Ion Engine Engine Heavy Ion Engine Power Core Fission Core Propulsion Improved Treads Treads Improved Treads Leg Advanced Myomer Leg Wheel Armored Huge Wheel Hover Unit Gravmag System Flight Unit Xenon Bombardment Thruster Utility Medium Storage Unit Device Long-range Tractor Beam Storage Medium Storage Unit Processor Enhanced Optical Array Hackware System Shield Protection Hardened Medium Armor Plating Weapon Chainsword Energy Cannon EM Pulse Cannon Ballistic Gun Assault Rifle Launcher Long-range Missile Launcher Impact Weapon Powered Hammer Slashing Weapon Chainsword Piercing Weapon Spear Build | -11 -10 -10 -9 -9 -9 -8 -8 -7 -7 -7 -6 ------- Run | Yrd Mat Min Mat Min Exi Min Mat Fac Was Fac Fac Slots Evolved 8 | . . . 2 . . . 2 2 . . 2 Power 1 | . . . . . . . 1 . . . . Propulsion 2 | . . . 1 . . . 1 . . . . Utility 5 | . . . 1 . . . . 2 . . 2 Weapon . | . . . . . . . . . . . . Parts Attached 140 | 5 2 2 11 . 4 . 11 3 . 34 68 Power 22 | 1 . . 2 . . . 2 . . 4 13 Engine 15 | 1 . . 2 . . . 2 . . 3 7 Core 7 | . . . . . . . . . . 1 6 Reactor . | . . . . . . . . . . . . Propulsion 39 | 2 . . 4 . . . 4 . . 14 15 Treads 10 | . . . 4 . . . 4 . . . 2 Leg 13 | 2 . . . . . . . . . 2 9 Wheel 7 | . . . . . . . . . . 5 2 Hover 3 | . . . . . . . . . . 3 . Flight 6 | . . . . . . . . . . 4 2 Utility 46 | 1 1 2 3 . 2 . 3 3 . 9 22 Device 17 | . 1 2 . . . . . 2 . 1 11 Storage 10 | 1 . . 1 . 2 . . . . 1 5 Processor 9 | . . . 2 . . . . . . 4 3 Hackware 3 | . . . . . . . . . . 1 2 Protection 7 | . . . . . . . 3 1 . 2 1 Artifact . | . . . . . . . . . . . . Weapon 33 | 1 1 . 2 . 2 . 2 . . 7 18 Energy Gun . | . . . . . . . . . . . . Energy Cannon 4 | . . . 2 . 2 . . . . . . Ballistic Gun 3 | 1 1 . . . . . . . . 1 . Ballistic Cannon . | . . . . . . . . . . . . Launcher 17 | . . . . . . . 1 . . 3 13 Special Weapon . | . . . . . . . . . . . . Impact Weapon 3 | . . . . . . . 1 . . 2 . Slashing Weapon 5 | . . . . . . . . . . 1 4 Piercing Weapon 1 | . . . . . . . . . . . 1 Special Melee Weapon . | . . . . . . . . . . . . Unidentified Prototypes 14 | . . 1 1 . . . . . . 3 9 Parts Lost 29 | . . . . . . . 4 . 3 1 21 Power 6 | . . . . . . . 1 . . . 5 Propulsion 10 | . . . . . . . 3 . 2 1 4 Utility 6 | . . . . . . . . . . . 6 Weapon 7 | . . . . . . . . . 1 . 6 Highest Loss Streak 7 | . . . . . . . 2 . 3 1 7 To Critical Strikes . | . . . . . . . . . . . . Average Slot Usage (%) 89 | . 98 100 99 100 100 100 95 100 56 79 86 Engine 7 | . 14 14 11 11 11 11 16 15 9 5 2 Core 4 | . . . . . . . . . . 4 7 Treads 12 | . . . 28 33 33 33 34 30 15 . 1 Leg 10 | . 28 28 3 . . . . . . 8 17 Wheel 1 | . . . . . . . . . . 1 2 Flight 2 | . . . . . . . . . . 11 . Device 7 | . 12 14 1 . . . . 11 15 8 10 Storage 9 | . 14 14 11 11 11 11 9 7 2 1 13 Processor 12 | . . . 20 22 22 22 12 . . 11 11 Hackware 2 | . . . . . . . . . . 4 3 Protection 2 | . . . . . . . 5 18 7 4 1 Energy Cannon 5 | . . . 16 22 22 22 9 7 2 . . Ballistic Gun 1 | . 28 28 5 . . . . . . . . Launcher 3 | . . . . . . . 3 . . 3 6 Impact Weapon 1 | . . . . . . . 3 7 2 1 . Slashing Weapon 3 | . . . . . . . . . . 4 5 Naked Turns . | . . . . . . . . . . . . Heaviest Build 89 | 10 12 12 30 30 64 64 80 89 87 36 69 Greatest Support 120 | 20 20 20 69 69 69 69 92 88 88 34 120 Greatest Overweight (x) 10 | . . . . . . . 1 1 . 3 10 Average Overweight (x) . | . . . . . . . . . . . . Largest Inventory Capacity 20 | 8 8 8 10 10 20 20 20 20 20 10 10 Average Capacity 10 | 6 8 8 8 10 11 20 20 20 10 6 10 Most Carried 14 | 1 3 4 9 9 9 11 14 9 8 9 10 Average Carried 8 | . 1 3 7 9 8 10 12 8 6 5 9 Final Capacity 20 | 8 8 8 10 10 20 20 20 20 5 10 10 Final Carried 11 | 1 3 4 9 9 9 11 10 8 5 8 7 Class Distribution -------------------- 73% | Mutant 10% | Hacker-Mutant 8% | Assassin 5% | Scout Dominant Class ---------------- Mutant | -10/Materials Mutant | -10/Mines Mutant | -9/Materials Mutant | -9/Mines Mutant | -9/Exiles Mutant | -8/Mines Mutant | -8/Materials Assassin | -7/Factory Scout | -7/Waste Mutant | -7/Factory Mutant | -6/Factory Resources | -11 -10 -10 -9 -9 -9 -8 -8 -7 -7 -7 -6 ----------- Run | Yrd Mat Min Mat Min Exi Min Mat Fac Was Fac Fac Matter Collected 3050 | 205 . . 215 . . 21 165 . . 388 2056 Remotely 1521 | . . . . . . . . . . 334 1187 Salvage Created 4939 | . . . 833 . . . 1040 . . 388 2678 Parts 257 | . . . 47 . . . 60 . . 21 129 Haulers Intercepted 14 | . . . 3 . . . 2 . . 6 3 Recyclers Shooed 4 | . . . . . . . . . . 1 3 Parts Field Recycled . | . . . . . . . . . . . . Retrieved Matter . | . . . . . . . . . . . . Parts Self-Destructed . | . . . . . . . . . . . . Prevented . | . . . . . . . . . . . . Kills | -11 -10 -10 -9 -9 -9 -8 -8 -7 -7 -7 -6 ------- Run | Yrd Mat Min Mat Min Exi Min Mat Fac Was Fac Fac Combat Hostiles Destroyed 80 | . . . 14 . . . 15 . . 1 50 Melee 13 | . . . . . . . 5 . . 1 7 Cannons 13 | . . . 13 . . . . . . . . AOE 50 | . . . 1 . . . 6 . . . 43 Classes Destroyed 18 | . . . 7 . . . 3 . . . 8 Worker 13 | . . . 1 . . . 4 . . . 8 Builder 7 | . . . . . . . 5 . . . 2 Tunneler 2 | . . . . . . . . . . . 2 Hauler 14 | . . . 3 . . . 2 . . 6 3 Recycler 7 | . . . 1 . . . . . . 1 5 Mechanic 3 | . . . . . . . . . . . 3 Operator 1 | . . . . . . . . . . . 1 Watcher 13 | . . . 3 . . . 3 . . 1 6 Swarmer 20 | . . . 6 . . . 3 . . . 11 Saboteur 1 | . . . . . . . . . . . 1 Grunt 25 | . . . 4 . . . 7 . . . 14 Brawler 2 | . . . . . . . . . . . 2 Duelist 5 | . . . . . . . 1 . . . 4 Protector 3 | . . . . . . . . . . . 3 Sentry 8 | . . . 4 . . . 3 . . 1 . Specialist 1 | . . . . . . . . . . . 1 Hunter 10 | . . . . . . . 1 . . . 9 Programmer 5 | . . . . . . . . . . . 5 Best Kill Streak 13 | . . . 5 . . . 9 . . 2 13 Combat Bots Only 10 | . . . 4 . . . 7 . . 1 10 Max Kills in Single Turn 7 | . . . 1 . . . 3 . . 1 7 Gunslinging . | . . . . . . . . . . . . Exploded 6 | . . . 1 . . . 3 . . . 6 Melee 1 | . . . . . . . 1 . . 1 1 Uniques/NPCs Destroyed . | . . . . . . . . . . . . Combat | -11 -10 -10 -9 -9 -9 -8 -8 -7 -7 -7 -6 -------- Run | Yrd Mat Min Mat Min Exi Min Mat Fac Was Fac Fac Hostile Shots Fired 526 | . 7 3 51 . . . 76 . 4 126 259 Missed 179 | . 3 1 16 . . . 16 . 1 52 90 Damage Taken 6718 | . 54 23 408 . . . 1210 . 169 763 4091 Core 1153 | . 26 . 35 . . . 66 . 37 136 853 Absorbed by Shields . | . . . . . . . . . . . . Redirected to Shielding 3 | . . . . . . . . . . 3 . Regen/Repaired (Parts) 69 | . . . . . . . . . . . 69 Core Remaining (%) 88 | 100 . 89 . . . 91 88 . . 75 . Volleys Fired 153 | . . . 36 . . . 23 . 5 8 81 Largest 2 | . . . 2 . . . 1 . 1 1 2 Hottest 126 | . . . 126 . . . 60 . 60 39 86 Shots Fired 191 | . . . 63 . . . 24 . 5 10 89 Gun 10 | . . . 10 . . . . . . . . Cannon 81 | . . . 53 . . . 23 . 5 . . Launcher 100 | . . . . . . . 1 . . 10 89 Special . | . . . . . . . . . . . . Kinetic 10 | . . . 10 . . . . . . . . Thermal . | . . . . . . . . . . . . Explosive 74 | . . . . . . . . . . 9 65 Electromagnetic 107 | . . . 53 . . . 24 . 5 1 24 Robot Hit Streak 25 | . . . 25 . . . 7 . 5 12 13 Robot Miss Streak 3 | . . . 3 . . . 3 . 1 . 2 Penetration Max . | . . . . . . . . . . . . Secondary Targets . | . . . . . . . . . . . . Shots Hit Robots 198 | . . . 41 . . . 32 . 4 29 92 Core Hits 232 | . . . 21 . . . 36 . 1 13 161 Critical Kills 1 | . . . . . . . . . . 1 . Critical Parts Destroyed 1 | . . . . . . . 1 . . . . Critical Strikes 12 | . . . 1 . . . 1 . . 4 6 Corrupt 1 | . . . 1 . . . . . . . . Smash 2 | . . . . . . . 1 . . 1 . Sever 9 | . . . . . . . . . . 3 6 Melee Attacks 115 | . . . . . . . 21 . . 30 64 Impact 28 | . . . . . . . 21 . . 7 . Slashing 87 | . . . . . . . . . . 23 64 Piercing . | . . . . . . . . . . . . Sneak Attacks 20 | . . . . . . . 2 . . 8 10 Combat Hostiles . | . . . . . . . . . . . . Follow-up Attacks . | . . . . . . . . . . . . Damage Inflicted 16074 | . . . 1232 . . . 2699 . 8 1286 10849 Guns 70 | . . . 70 . . . . . . . . Cannons 1035 | . . . 910 . . . 125 . . . . Explosions 11209 | . . . 252 . . . 1740 . 8 229 8980 Melee 3760 | . . . . . . . 834 . . 1057 1869 Ramming . | . . . . . . . . . . . . Kinetic 70 | . . . 70 . . . . . . . . Thermal 1002 | . . . 29 . . . 53 . . . 920 Explosive 7149 | . . . 223 . . . . . . 192 6734 Electromagnetic 4093 | . . . 910 . . . 1812 . 8 37 1326 Impact 897 | . . . . . . . 834 . . 63 . Slashing 2863 | . . . . . . . . . . 994 1869 Piercing . | . . . . . . . . . . . . Highest Corruption 45 | . . . . . . . 45 . 21 21 10 Average Corruption 14 | . . . . . . . 25 . 12 21 6 Corruption Purged 5 | . . . . . . . . . . . 5 Corruption Blocked . | . . . . . . . . . . . . Effects 136 | . . . . . . . 38 . 5 50 43 Message Errors 35 | . . . . . . . 7 . 2 14 12 Matter Fused 25 | . . . . . . . 7 . 1 10 7 Heat Flow Errors 16 | . . . . . . . 4 . . 7 5 Energy Discharges 16 | . . . . . . . 4 . . 7 5 Parts Rejected 1 | . . . . . . . . . . . 1 Parts Fused 5 | . . . . . . . 1 . . 2 2 Data Loss (minor) 15 | . . . . . . . 3 . 1 4 7 Data Loss (major) 5 | . . . . . . . 1 . . 3 1 Misfires 7 | . . . . . . . 4 . . 2 1 Alerts 3 | . . . . . . . 1 . . 1 1 Misdirections 4 | . . . . . . . 3 . 1 . . Weapon Failures 4 | . . . . . . . 3 . . . 1 Overload Shots . | . . . . . . . . . . . . Overflow Damage 1039 | . . . 67 . . . 262 . . 55 655 Projectiles 35 | . . . 35 . . . . . . . . Explosions 440 | . . . 32 . . . 24 . . . 384 Melee 564 | . . . . . . . 238 . . 55 271 Knockbacks 4 | . . . . . . . 4 . . . . Impact 4 | . . . . . . . 4 . . . . Kinetic . | . . . . . . . . . . . . Secondary . | . . . . . . . . . . . . Self-Inflicted Damage 1447 | . . . 57 . . . 365 . 47 52 926 Shots 29 | . . . 2 . . . 6 . 2 2 17 Rammed . | . . . . . . . . . . . . Targets Rammed . | . . . . . . . . . . . . Kicked . | . . . . . . . . . . . . Crushed . | . . . . . . . . . . . . Highest Temperature 355 | . . . 223 . . . 283 . 8 355 167 Average Temperature 74 | . . . 73 . . . 80 . 8 82 53 Received Heat Transfer 879 | . 33 12 93 . . . 216 . . 180 345 Effects 1 | . . . . . . . . . . 1 . Energy Bleed 1 | . . . . . . . . . . 1 . Siege Activations . | . . . . . . . . . . . . Robots Corrupted 3 | . . . . . . . 2 . . . 1 Combat Hostiles 1 | . . . . . . . 1 . . . . Parts Fried 24 | . . . 5 . . . 16 . . . 3 Impact Corruptions 11 | . . . . . . . 11 . . . . Robots Melted . | . . . . . . . . . . . . Combat Hostiles . | . . . . . . . . . . . . Parts Melted 1 | . . . . . . . . . . . 1 Heat Transferred 800 | . . . 50 . . . 100 . . . 650 Parts Sabotaged 5 | . . . . . . . . . . . 5 Parts Stolen . | . . . . . . . . . . . . Parts Stripped . | . . . . . . . . . . . . Power Chain Reactions 7 | . . . 1 . . . 2 . . . 4 Latent Energy Used 2100 | . . . . . . . 1890 . 210 . . LE Corruption 45 | . . . . . . . 39 . 6 . . Alert | -11 -10 -10 -9 -9 -9 -8 -8 -7 -7 -7 -6 ------- Run | Yrd Mat Min Mat Min Exi Min Mat Fac Was Fac Fac Peak Influence 1552 | . . . 394 153 . . 497 226 79 114 1552 Initial 226 | . . . . 153 . . . 226 79 55 23 Average 426 | . . . 173 153 . . 249 226 73 57 770 Maximum Alert Level 4 | . . . 1 . . . 2 1 . . 4 Low Security (%) 47 | 100 100 100 55 100 . 100 47 . 100 100 17 Level 1 13 | . . . 44 . . . 29 100 . . 3 Level 2 11 | . . . . . . . 22 . . . 19 Level 3 13 | . . . . . . . . . . . 28 Level 4 14 | . . . . . . . . . . . 31 Level 5 . | . . . . . . . . . . . . High Security . | . . . . . . . . . . . . Max Security . | . . . . . . . . . . . . Squads Dispatched 23 | . . . 2 . . . 3 . . 1 17 Investigation 1 | . . . . . . . . . . . 1 Extermination 4 | . . . . . . . . . . . 4 Reinforcement 14 | . . . 2 . . . 3 . . 1 8 Assault 4 | . . . . . . . . . . . 4 Garrison . | . . . . . . . . . . . . Intercept . | . . . . . . . . . . . . Searches Triggered . | . . . . . . . . . . . . Construction Impeded 2 | . . . . . . . 1 . . . 1 Haulers Reinforced 2 | . . . . . . . . . . 1 1 Active Scanning Responses . | . . . . . . . . . . . . Cargo Convoy Interrupts 1 | . . . . . . . . . . . 1 Stealth | -11 -10 -10 -9 -9 -9 -8 -8 -7 -7 -7 -6 --------- Run | Yrd Mat Min Mat Min Exi Min Mat Fac Was Fac Fac Distress Signals 5 | . . . 1 . . . 1 . . . 3 Communications Jammed . | . . . . . . . . . . . . Distress Signals . | . . . . . . . . . . . . Times Spotted 130 | . 3 2 20 . . . 26 . 5 2 72 Peak Tracking Total 12 | . 4 2 5 . . . 5 . 5 2 12 Tactical Retreats 3 | . . . . . . . 1 . . . 2 Traps | -11 -10 -10 -9 -9 -9 -8 -8 -7 -7 -7 -6 ------- Run | Yrd Mat Min Mat Min Exi Min Mat Fac Was Fac Fac Traps Triggered 7 | . . . . . . . 2 1 . 1 3 Indirectly 2 | . . . . . . . 1 . . . 1 Trap Hack Attempts . | . . . . . . . . . . . . Triggered . | . . . . . . . . . . . . Disarmed . | . . . . . . . . . . . . Reprogrammed . | . . . . . . . . . . . . Reused . | . . . . . . . . . . . . Traps Extracted . | . . . . . . . . . . . . Installed . | . . . . . . . . . . . . Triggered . | . . . . . . . . . . . . Machines | -11 -10 -10 -9 -9 -9 -8 -8 -7 -7 -7 -6 ---------- Run | Yrd Mat Min Mat Min Exi Min Mat Fac Was Fac Fac Machines Disabled 39 | . . . 4 . . . 4 . . 2 29 Max in Single Turn 10 | . . . 2 . . . 1 . . 1 10 Garrison Access 1 | . . . . . . . . . . 1 . Machines Repaired . | . . . . . . . . . . . . Machines Dismantled . | . . . . . . . . . . . . Machines Sabotaged . | . . . . . . . . . . . . Overloaded Fab Kills . | . . . . . . . . . . . . Hacking | -11 -10 -10 -9 -9 -9 -8 -8 -7 -7 -7 -6 --------- Run | Yrd Mat Min Mat Min Exi Min Mat Fac Was Fac Fac Machines Accessed 30 | . 2 . 2 . 2 . 5 . . 8 11 Terminals 20 | . 2 . 2 . . . 5 . . 5 6 Fabricators 4 | . . . . . . . . . . 1 3 Repair Stations 2 | . . . . . . . . . . . 2 Recycling Units . | . . . . . . . . . . . . Scanalyzers . | . . . . . . . . . . . . Garrison Access 2 | . . . . . . . . . . 2 . Total Hacks 73 | . 5 . 5 . 2 . 20 . . 14 27 Successful 32 | . 2 . 3 . 2 . 8 . . 6 11 Failed 41 | . 3 . 2 . . . 12 . . 8 16 Catastrophic 11 | . 1 . . . . . 4 . . 4 2 Database Lockouts . | . . . . . . . . . . . . Manual 64 | . 5 . 4 . 1 . 20 . . 11 23 Terminals 56 | . 5 . 5 . . . 20 . . 9 17 Fabricators 9 | . . . . . . . . . . 3 6 Repair Stations 4 | . . . . . . . . . . . 4 Recycling Units . | . . . . . . . . . . . . Scanalyzers . | . . . . . . . . . . . . Garrison Access 2 | . . . . . . . . . . 2 . Terminal Hacks 8 | . . . 1 . 2 . 2 . . . 3 Record 1 | . . . . . 1 . . . . . . Prototype ID Bank 1 | . . . 1 . . . . . . . . Level Access Points 1 | . . . . . . . . . . . 1 Branch Access Points 2 | . . . . . . . 1 . . . 1 Locate Traps 1 | . . . . . . . . . . . 1 Recall Reinforcements 1 | . . . . . . . 1 . . . . Derelict Proto ID Bank 1 | . . . . . 1 . . . . . . Fabricator Hacks 2 | . . . . . . . . . . 1 1 Network Status 2 | . . . . . . . . . . 1 1 Repair Station Hacks 2 | . . . . . . . . . . . 2 Scan Component 1 | . . . . . . . . . . . 1 Repair 1 | . . . . . . . . . . . 1 Recycling Unit Hacks . | . . . . . . . . . . . . Scanalyzer . | . . . . . . . . . . . . Garrison Access Hacks 1 | . . . . . . . . . . 1 . Seal Access 1 | . . . . . . . . . . 1 . Unauthorized Hacks 19 | . 2 . 2 . . . 6 . . 4 5 Terminals 16 | . 2 . 2 . . . 6 . . 3 3 Assimilate 2 | . 1 . 1 . . . . . . . . Botnet 12 | . . . 1 . . . 5 . . 3 3 Operators 2 | . 1 . . . . . 1 . . . . Fabricators 2 | . . . . . . . . . . 1 1 Haulers 2 | . . . . . . . . . . 1 1 Repair Stations 1 | . . . . . . . . . . . 1 Mechanics 1 | . . . . . . . . . . . 1 Recycling Units . | . . . . . . . . . . . . Scanalyzers . | . . . . . . . . . . . . Garrison Access . | . . . . . . . . . . . . Data Cores Recovered . | . . . . . . . . . . . . Used . | . . . . . . . . . . . . Hacking Detections 27 | . 2 . 2 . . . 5 . . 7 11 Full Trace Events 1 | . . . . . . . 1 . . . . Feedback Events . | . . . . . . . . . . . . Feedback Blocked . | . . . . . . . . . . . . Robot Schematics Acquired . | . . . . . . . . . . . . Robots Built . | . . . . . . . . . . . . Authchips . | . . . . . . . . . . . . Time . | . . . . . . . . . . . . Total Robot Build Rating . | . . . . . . . . . . . . Part Schematics Acquired . | . . . . . . . . . . . . Parts Built . | . . . . . . . . . . . . Authchips . | . . . . . . . . . . . . Time . | . . . . . . . . . . . . Total Part Build Rating . | . . . . . . . . . . . . Parts Repaired 1 | . . . . . . . . . . . 1 Time 50 | . . . . . . . . . . . 50 Parts Recycled . | . . . . . . . . . . . . Recycled Matter . | . . . . . . . . . . . . Retrieved Matter . | . . . . . . . . . . . . Retrieved Components . | . . . . . . . . . . . . Parts Scanalyzed . | . . . . . . . . . . . . Part Schematics Acquired . | . . . . . . . . . . . . Parts Damaged . | . . . . . . . . . . . . Bothacking | -11 -10 -10 -9 -9 -9 -8 -8 -7 -7 -7 -6 ------------ Run | Yrd Mat Min Mat Min Exi Min Mat Fac Was Fac Fac Used RIF Installer . | . . . . . . . . . . . . Robots Hacked . | . . . . . . . . . . . . Non-combat . | . . . . . . . . . . . . Combat . | . . . . . . . . . . . . Robot Hacks Applied . | . . . . . . . . . . . . Relay Couplers Released . | . . . . . . . . . . . . Fabnet Peak Effective % . | . . . . . . . . . . . . Robots Rewired . | . . . . . . . . . . . . Allies Hacked . | . . . . . . . . . . . . Hacks Repelled . | . . . . . . . . . . . . Allies | -11 -10 -10 -9 -9 -9 -8 -8 -7 -7 -7 -6 -------- Run | Yrd Mat Min Mat Min Exi Min Mat Fac Was Fac Fac Total Allies . | . . . . . . . . . . . . Largest Group . | . . . . . . . . . . . . Highest-Rated Group . | . . . . . . . . . . . . Highest-Rated Ally . | . . . . . . . . . . . . Total Orders . | . . . . . . . . . . . . Ally Attacks . | . . . . . . . . . . . . Total Damage . | . . . . . . . . . . . . Kills . | . . . . . . . . . . . . Allies Corrupted . | . . . . . . . . . . . . Allies Melted . | . . . . . . . . . . . . Intel | -11 -10 -10 -9 -9 -9 -8 -8 -7 -7 -7 -6 ------- Run | Yrd Mat Min Mat Min Exi Min Mat Fac Was Fac Fac Robot Analysis Total . | . . . . . . . . . . . . Derelict Logs Recovered . | . . . . . . . . . . . . Drone Launches . | . . . . . . . . . . . . Drone Recoveries . | . . . . . . . . . . . . Exploration | -11 -10 -10 -9 -9 -9 -8 -8 -7 -7 -7 -6 ------------- Run | Yrd Mat Min Mat Min Exi Min Mat Fac Was Fac Fac Turns Passed 6343 | 40 99 80 713 12 426 153 774 151 123 1041 2731 Spaces Moved 4201 | 30 79 64 346 8 262 94 309 80 132 1120 1677 Core 201 | 5 . . . . . . . . 91 104 1 Treads 1071 | . . . 276 8 262 94 309 80 41 . 1 Legs 2204 | 25 79 64 70 . . . . . . 384 1582 Wheels 95 | . . . . . . . . . . 3 92 Hover 2 | . . . . . . . . . . 2 . Flight 628 | . . . . . . . . . . 627 1 Fastest Speed 29 | 50 120 120 120 160 160 160 156 156 50 29 115 Average Speed 118 | 108 120 120 151 160 160 160 162 185 82 71 125 Slowest Speed 550 | 120 120 120 160 160 160 160 240 236 156 200 550 Overloaded Moves . | . . . . . . . . . . . . Propulsion Burnouts . | . . . . . . . . . . . . Robots Hopped . | . . . . . . . . . . . . Cave-ins Triggered . | . . . . . . . . . . . . Exploration Rate (%) 31 | 4 29 19 34 3 61 19 30 3 91 36 50 Regions Visited 11 Branch Regions 4 Pre-discovered Areas 1 | . . . . . 1 . . . . . . Known Exits Taken 5 | . . . 1 1 1 1 . . . 1 . Unknown Exits Taken 4 | 1 1 1 . . . . 1 . . . . Scrap Searched 1 | . . . . . . 1 . . . . . Spaces Dug 26 | . . . . . . . 1 . . 8 17 Terrain Destroyed 631 | . . . 60 . . . 99 . . 38 434 Melee 16 | . . . . . . . 1 . . 8 7 Projectile . | . . . . . . . . . . . . AOE 615 | . . . 60 . . . 98 . . 30 427 Terrain Rammed . | . . . . . . . . . . . . Walls Destroyed . | . . . . . . . . . . . . Machines Disabled . | . . . . . . . . . . . . Actions | -11 -10 -10 -9 -9 -9 -8 -8 -7 -7 -7 -6 --------- Run | Yrd Mat Min Mat Min Exi Min Mat Fac Was Fac Fac Total 5216 | 35 82 67 475 7 268 97 521 84 144 1307 2129 Wait 459 | . . . 63 . . 2 144 . . 68 182 Move 4191 | 29 78 63 345 7 261 93 308 80 131 1119 1677 Hop . | . . . . . . . . . . . . Pick Up 54 | 1 2 . 9 . . 2 7 . 1 15 17 Fast Attach 101 | 5 2 1 7 . 1 . 4 1 . 30 50 Attach 25 | . . 1 1 . . . 6 2 . 4 11 Detach 6 | . . 2 . . . . . . . 2 2 Swap 14 | . . . 3 . 3 . 1 . . . 7 Drop 97 | . . . 11 . 3 . 6 1 7 31 38 Fire 153 | . . . 36 . . . 23 . 5 8 81 Melee 115 | . . . . . . . 21 . . 30 64 Ram 1 | . . . . . . . 1 . . . . Kick . | . . . . . . . . . . . . Crush . | . . . . . . . . . . . . Escape Stasis . | . . . . . . . . . . . . Rewire . | . . . . . . . . . . . . Trap . | . . . . . . . . . . . . Miscellaneous . | . . . . . . . . . . . . Route ------- -11/Scrapyard -10/Materials -10/Mines -9/Materials (discovered 2 exits: *Min / [*Sto]) -9/Mines -9/Exiles -8/Mines -8/Materials -7/Factory -7/Waste -7/Factory (discovered 2 exits: *Fac x2) -6/Factory (discovered 6 exits: *Fac x4 / Low x2) History --------- Turn | Location | Event 3 | -11/Scrapyard | Discovered new exit (range 16) 41 | -11/Scrapyard | Entered Materials 92 | -10/Materials | Discovered new exit (range 16) 140 | -10/Materials | Entered Mines 181 | -10/Mines | Found a damaged Exp. Sensor Array with a note attached 184 | -10/Mines | Found Prototype Device 184 | -10/Mines | Identified Exp. Sensor Array 210 | -10/Mines | Discovered new exit (range 8) 220 | -10/Mines | Entered Materials 220 | -9/Materials | Evolved 2 slots: Propulsion x1, Utility x1 307 | -9/Materials | Build established: Mutant 687 | -9/Materials | Discovered new exit (range 12) 791 | -9/Materials | Discovered new exit (range 9) 930 | -9/Materials | Identified exit to Mines 933 | -9/Materials | Entered Mines 938 | -9/Mines | Deemed a non-threat by the Exiles lab entrance 938 | -9/Mines | Discovered new exit (range 5) 943 | -9/Mines | Identified exit to Exiles 945 | -9/Mines | Entered Exiles 984 | -9/Exiles | Met 8R-AWN 1013 | -9/Exiles | Met EX-HEX 1065 | -9/Exiles | Met EX-BIN 1083 | -9/Exiles | Aligned with FarCom system 1085 | -9/Exiles | Given EX-Vault access code 1121 | -9/Exiles | Opened EX-Vault 1132 | -9/Exiles | Found Latent Energy Streamer 1169 | -9/Exiles | Warned to stay clear of 0b10 Research branches 1213 | -9/Exiles | Met EX-DEC 1221 | -9/Exiles | Learned location of Zion (-6) 1350 | -9/Exiles | Discovered new exit (range 14) 1369 | -9/Exiles | Identified exit to Mines 1371 | -9/Exiles | Left Exiles lab with Latent Energy Streamer 1371 | -9/Exiles | Entered Mines 1513 | -8/Mines | Discovered new exit (range 7) 1523 | -8/Mines | Identified exit to Materials 1524 | -8/Mines | Entered Materials 1524 | -8/Materials | Evolved 2 slots: Power x1, Propulsion x1 1725 | -8/Materials | System corruption reached 10% 2071 | -8/Materials | Destroyed 7 combat bots 2088 | -8/Materials | System corruption reached 30% 2290 | -8/Materials | Discovered new exit (range 7) 2298 | -8/Materials | Entered Factory 2298 | -7/Factory | Evolved 2 slots: Utility x2 2312 | -7/Factory | Discovered new exit (range 16) 2449 | -7/Factory | Sucked down chute 2449 | -7/Factory | Entered Waste 2460 | -7/Waste | Spotted C-40 Crusher 2464 | -7/Waste | EMP discharged 2472 | -7/Waste | System corruption reached 10% 2481 | -7/Waste | Spotted C-40 Crusher 2492 | -7/Waste | Crushed by Compactor (1 part destroyed, 1 dropped) 2495 | -7/Waste | Crushed by Compactor (1 part destroyed, 2 dropped) 2511 | -7/Waste | Spotted C-40 Crusher 2523 | -7/Waste | Crushed by Compactor (1 part destroyed, 2 dropped) 2526 | -7/Waste | Spotted C-40 Crusher 2530 | -7/Waste | Spotted C-40 Crusher 2538 | -7/Waste | Spotted C-40 Crusher 2554 | -7/Waste | Lost 3 parts (2n1w) 2558 | -7/Waste | Discovered new exit (range 13) 2564 | -7/Waste | EMP discharged 2572 | -7/Waste | Entered Factory 2861 | -7/Factory | Build established: Scout 3000 | -7/Factory | Discovered new exit (range 14) 3267 | -7/Factory | Build established: Mutant 3608 | -7/Factory | Discovered new exit (range 4) 3613 | -7/Factory | Identified exit to Factory 3613 | -7/Factory | Entered another Factory area 3613 | -6/Factory | Evolved 2 slots: Utility x2 3935 | -6/Factory | Build established: Hacker-Mutant 4267 | -6/Factory | Cargo convoy interrupted 4311 | -6/Factory | Destroyed 10 combat bots 4331 | -6/Factory | Lost 7 parts (2p2n1u2w) 4663 | -6/Factory | First assault squad dispatched 4750 | -6/Factory | Discovered new exit (range 22) 4828 | -6/Factory | Core integrity fell below 50% 4882 | -6/Factory | Lost 5 parts (2p2u1w) 4895 | -6/Factory | Build established: Assassin 5088 | -6/Factory | System corruption reached 10% 5118 | -6/Factory | Lost 5 parts (1n3u1w) 5247 | -6/Factory | Found Launcher Loader 5296 | -6/Factory | Build established: Mutant 5686 | -6/Factory | Spotted B-75 Beast 5854 | -6/Factory | Repaired Fission Core 5982 | -6/Factory | Identified exit to Lower Caves 5982 | -6/Factory | Identified exit to Factory 6183 | -6/Factory | Core integrity fell below 20% 6332 | -6/Factory | Lost 3 parts (1p1n1w) 6344 | -6/Factory | Destroyed by Y-54 Guardian with Flak Gun Last Messages --------------- 06301_ Carbon-fiber Leg destroyed. 06301_ Destroyed Carbon-fiber Leg. 06301_ Nuclear Reactor explodes. 06301_ K-01 Serf collects debris. 06301_ U-05 Engineer lays Concrete. 06304_ K-01 Serf collects debris. 06304_ U-05 Engineer builds a Wall. 06304_ U-05 Engineer lays Concrete. 06305_ K-01 Serf collects debris. 06305_ U-05 Engineer lays Concrete. 06306_ Connecting with Terminal... 06307_ K-01 Serf collects debris. 06307_ U-05 Engineer lays Concrete. 06316_ K-01 Serf collects debris. 06329_ Connecting with Terminal... 06340_ Subcomponent Replicator disabled. 06340_ Terminal disabled. 06341_ System corrupted: IFF burst signal emitted. 06341_ P-60 Hacker destroyed. Map ----- +----------------------------------------------------+ | | | | | | | | | | | | | | | | | | | | | | | | | | | | | | | | | | | | | | | | | | | ???????????????????#####?????????????????????????? | | ??????????????????##"""#?????????????????????????? | | ????????????????### "T" ###??????????????????????? | | ???????????????## " ##########?????????????? | | ???????????????# @ #?????????????? | | ???????????????# #?????????????? | | ??????########## " ==! #?????????????? | | ??????# [ ## " == #?????????????? | | ??????# ## " =! #?????????????? | | ??????# #?????????????? | | ??????# #?????????????? | | ??????# # #?????????????? | | ??????# [ ########### #?????????????? | | ??????# !%| #??????????? #?????????????? | | ??###### ##########??? # ????????????? | | ! # #### Y ???????????? | | """"""""" # # ??????????? | | ! + = ?????????? | | """"""""" # ?? # ????????? | | # ! #???# ] ????????? | | """"""""" ##!! #????? # ? ??????????? | | ##!!*#?????? ## ? ???????????? | | ""T"" ## ! #?????? #???????????????? | | ! """"" ##!! #???????? ????????????????? | | ####### #???????????????????????????? | | ####### #???????????????????????????? | | #???????????????????????????? | | ###### ##??????????????????????????? | | #?#### #??????????????????????????? | +----------------------------------------------------+ Best States ------------- Heat Dissipation 75 Energy Generation 31 Energy Capacity 1020 Matter Stores 550 Matter Capacity 550 Sight Range 22 Robot Scan Range 14 Terrain Scan Range 16 Terrain Scan Density 85 Base Temperature (-) 150 Corruption Block 8 Armor Coverage 600 Weapon Shielding 66 Evasion (%) 64 Targeting Accuracy 6 Melee Accuracy 6 Recoil Reduction 4 Offensive Hacking 10 Defensive Hacking 10 Item Schematics ----------------- None Robot Schematics ------------------ None Fabricated ------------ Nothing Alien Tech Used ----------------- None Achievements -------------- None Challenges ------------ None Game ------ Seed ScanChargeMegatreads Manual? 0 Play Time 01:12:57 Cumulative 122.8 hours Start 2024.04.24 @ 16:03:05 End 2024.04.24 @ 17:43:56 Sessions 1 Manual Loads 0 Difficulty Rogue Special Mode None Game No. 128 Rogue 123 Adventurer 5 Explorer 0 Win Type - Total 3 Types 2/0/0/1/0/0/0/0/0 Lore% 50 Gallery% 66 Achievement% 49 Wizard Run 0 Options --------- Layout 1 ASCII 0 Keyboard 0 Movement Mouse Keybinds 0 Fullscreen 1 Font 24/Terminus Map View 50x35 Zoom Use 0% Tactical HUD 1 Map Filters NONE Filters NONE Steam 1 RUN: 7ed495f5-28a0-4b1b-82d2-f8b2f9ae84bf